bitfinex/quotes_BTCUSD_20260125
["timestamp","ask_amount","ask_price","bid_price","bid_amount"]
[1769355700139,0.01127255,88711.0,88701.0,0.0001405]
[1769355700345,0.01127243,88712.0,88701.0,0.0001405]
[1769355700508,0.0122723,88713.0,88701.0,0.0001405]
[1769355701176,0.0112723,88713.0,88701.0,0.0001405]
[1769355701388,0.01127217,88714.0,88701.0,0.0001405]
[1769355702029,0.0112723,88713.0,88701.0,0.0001405]
[1769355702232,0.01127217,88714.0,88701.0,0.0001405]
[1769355703091,0.0122723,88713.0,88701.0,0.0001405]
[1769355703704,0.0112723,88713.0,88701.0,0.0001405]
[1769355703904,0.01127217,88714.0,88701.0,0.0001405]
[1769355703905,0.01227217,88714.0,88701.0,0.0001405]
[1769355704392,0.01127205,88715.0,88701.0,0.0001405]
[1769355704802,0.001,88713.0,88701.0,0.0001405]
[1769355706150,0.01127205,88715.0,88701.0,0.0001405]
[1769355706352,0.01227205,88715.0,88701.0,0.0001405]
[1769355706761,0.01127205,88715.0,88701.0,0.0001405]
[1769355707247,0.001,88713.0,88701.0,0.0001405]
[1769355707802,0.01127205,88715.0,88701.0,0.0001405]
[1769355708002,0.06763274,88715.0,88701.0,0.0001405]
[1769355708326,0.01127205,88715.0,88701.0,0.0001405]
[1769355708741,0.01127179,88717.0,88701.0,0.0001405]
[1769355708907,0.01127205,88715.0,88701.0,0.0001405]
[1769355709305,0.01127217,88714.0,88701.0,0.0001405]
[1769355710111,0.01127243,88712.0,88701.0,0.0001405]
[1769355710518,0.01127255,88711.0,88701.0,0.0001405]
[1769355711424,0.01127243,88712.0,88701.0,0.0001405]
[1769355712143,0.67611483,88713.0,88701.0,0.0001405]
[1769355712718,0.68738713,88713.0,88701.0,0.0001405]
[1769355713283,0.67711483,88713.0,88701.0,0.0001405]
[1769355713433,0.01127243,88712.0,88701.0,0.0001405]
[1769355714623,0.01127255,88711.0,88701.0,0.0001405]
[1769355717304,0.01127268,88710.0,88701.0,0.0001405]
[1769355717448,0.01227255,88711.0,88701.0,0.0001405]
[1769355718919,0.01127243,88712.0,88701.0,0.0001405]
[1769355719263,0.01127255,88711.0,88701.0,0.0001405]
[1769355719698,0.05636065,88715.0,88702.0,0.38041909]
[1769355719699,0.06763285,88715.0,88702.0,0.38041909]
[1769355720145,0.001,88712.0,88702.0,0.38041909]
[1769355720700,0.01127217,88714.0,88702.0,0.38041909]
[1769355721337,0.01227205,88715.0,88702.0,0.38041909]
[1769355721680,0.01127217,88714.0,88702.0,0.38041909]
[1769355721880,0.0112723,88713.0,88702.0,0.38041909]
[1769355722373,0.01127268,88710.0,88701.0,0.0001405]
[1769355722817,0.01127344,88704.0,88701.0,0.0001405]
[1769355723018,0.67611483,88703.0,88701.0,0.0001405]
[1769355723236,1.11968586,88702.0,88701.0,1e-08]
[1769355726400,1.12068586,88702.0,88701.0,1e-08]
[1769355726775,1.11968586,88702.0,88701.0,1e-08]
[1769355727172,1.12068586,88702.0,88701.0,1e-08]
[1769355728755,1.11968586,88702.0,88701.0,1e-08]
[1769355728904,1.12068586,88702.0,88701.0,1e-08]
[1769355729502,1.11968586,88702.0,88701.0,1e-08]
[1769355729820,1.12068586,88702.0,88701.0,1e-08]
[1769355731009,1.06431735,88702.0,88701.0,1e-08]
[1769355731219,0.05736851,88702.0,88701.0,1e-08]
[1769355731600,0.05636851,88702.0,88701.0,1e-08]
[1769355732076,0.05736851,88702.0,88701.0,1e-08]
[1769355732291,0.001,88702.0,88701.0,1e-08]
[1769355732639,0.05636812,88703.0,88701.0,1e-08]
[1769355732959,0.05736851,88702.0,88701.0,1e-08]
[1769355733524,0.05636851,88702.0,88701.0,1e-08]
[1769355733941,0.0563683,88703.0,88701.0,1e-08]
[1769355734125,0.05636851,88702.0,88701.0,1e-08]
[1769355734303,0.0563683,88703.0,88701.0,1e-08]
[1769355734510,0.01127344,88704.0,88701.0,1e-08]
[1769355734511,0.06764194,88704.0,88701.0,1e-08]
[1769355734728,0.0563684,88703.0,88701.0,1e-08]
[1769355734936,0.05736787,88703.0,88701.0,1e-08]
[1769355735333,0.001,88703.0,88701.0,1e-08]
[1769355735546,0.06764194,88704.0,88701.0,1e-08]
[1769355735748,0.06864194,88704.0,88701.0,1e-08]
[1769355736192,0.001,88704.0,88701.0,1e-08]
[1769355736327,0.39871377,88718.0,88701.0,1e-08]
[1769355736328,0.796432,88712.0,88701.0,1e-08]
[1769355736535,0.001,88703.0,88698.0,0.36286486]
[1769355736742,0.01127141,88720.0,88694.0,0.36286486]
[1769355736938,0.38650067,88722.0,88698.0,0.36286486]
[1769355736939,0.01127154,88719.0,88698.0,0.36286486]
[1769355737138,4.736e-05,88719.0,88702.0,0.36286486]
[1769355737337,0.0113189,88719.0,88705.0,0.64711774]
[1769355737576,0.01127166,88718.0,88707.0,0.98682261]
[1769355738007,0.0113189,88719.0,88707.0,0.98682261]
[1769355738205,0.06767663,88719.0,88707.0,0.98682261]
[1769355738369,0.001,88712.0,88692.0,0.0001485]
[1769355738942,0.001,88712.0,88696.0,0.36286486]
[1769355739135,0.0113189,88719.0,88699.0,0.7035779]
[1769355739332,0.01127166,88718.0,88701.0,0.7035779]
[1769355739534,0.01127166,88718.0,88704.0,0.36286486]
[1769355739735,0.01127166,88718.0,88706.0,0.36286486]
[1769355739913,0.0123189,88719.0,88706.0,1.06644276]
[1769355740119,0.01127166,88718.0,88692.0,0.0001485]
[1769355740324,0.01127166,88718.0,88692.0,0.01748735]
[1769355740536,0.01127166,88718.0,88696.0,0.7035779]
[1769355740739,0.01127166,88718.0,88698.0,0.7035779]
[1769355741055,0.01127166,88718.0,88702.0,0.7035779]
[1769355741257,0.01127166,88718.0,88692.0,0.01748735]
[1769355741258,0.01127179,88717.0,88704.0,0.7035779]
[1769355741406,0.01127179,88717.0,88705.0,0.36286486]
[1769355741606,0.01127179,88717.0,88706.0,0.36286486]
[1769355742229,0.01127192,88716.0,88706.0,0.36286486]
[1769355742543,0.01127179,88717.0,88706.0,0.36286486]
[1769355743341,0.01127192,88716.0,88706.0,0.36286486]
[1769355743546,0.01127205,88715.0,88706.0,0.36286486]
[1769355744915,0.01127192,88716.0,88706.0,0.36286486]
[1769355745098,0.01127179,88717.0,88706.0,0.36286486]
[1769355745303,0.001,88715.0,88706.0,0.36286486]
[1769355745870,0.01127179,88717.0,88706.0,0.36286486]
[1769355746302,0.001,88716.0,88706.0,0.36286486]
[1769355747444,0.01127179,88717.0,88706.0,0.36286486]
[1769355747854,0.01227179,88717.0,88706.0,0.36286486]
[1769355749090,0.01127192,88716.0,88706.0,0.36286486]
[1769355749284,0.01227179,88717.0,88706.0,0.36286486]
[1769355749493,0.01127217,88714.0,88706.0,0.36286486]
[1769355749724,0.01127192,88716.0,88706.0,0.36286486]
[1769355751070,0.01227192,88716.0,88706.0,0.36286486]
[1769355751529,0.01127217,88714.0,88706.0,0.36286486]
[1769355751942,0.22542766,88721.0,88706.0,0.36286486]
[1769355752148,0.01127217,88714.0,88706.0,0.36286486]
[1769355752814,0.01127205,88715.0,88706.0,0.36286486]
[1769355753901,0.06763247,88715.0,88706.0,0.36286486]
[1769355754115,0.01227217,88714.0,88705.0,0.7035779]
[1769355754286,0.0686332,88714.0,88705.0,0.7035779]
[1769355754490,0.01127205,88715.0,88701.0,0.34579828]
[1769355754724,0.01127205,88715.0,88701.0,1.05451356]
[1769355754931,0.01127205,88715.0,88702.0,0.34579828]
[1769355754932,0.05636094,88714.0,88702.0,0.34579828]
[1769355755068,0.01127217,88714.0,88702.0,0.34579828]
[1769355755245,0.0112723,88713.0,88702.0,0.34579828]
[1769355755447,0.01127205,88715.0,88702.0,0.34579828]
[1769355755651,0.001,88715.0,88702.0,0.34579828]
[1769355755853,0.01227205,88715.0,88702.0,0.34579828]
[1769355756081,0.001,88715.0,88702.0,0.34579828]
[1769355756408,0.01227205,88715.0,88702.0,0.34579828]
[1769355756613,0.001,88715.0,88702.0,0.34579828]
[1769355757114,0.01127192,88716.0,88702.0,0.34579828]
[1769355757293,0.001,88713.0,88702.0,0.34579828]
[1769355757810,0.01127205,88715.0,88702.0,0.34579828]
[1769355758016,0.01127192,88716.0,88702.0,0.34579828]
[1769355758217,0.01227205,88715.0,88702.0,0.34579828]
[1769355758783,0.01127205,88715.0,88702.0,0.34579828]
[1769355758988,0.01127205,88715.0,88702.0,1.05451356]
[1769355760530,0.01127217,88714.0,88702.0,1.05451356]
[1769355760688,0.0112723,88713.0,88702.0,1.05451356]
[1769355761210,0.01127217,88714.0,88702.0,1.05451356]
[1769355761424,0.20473927,88719.0,88702.0,1.05451356]
[1769355761629,0.05636088,88715.0,88702.0,1.05451356]
[1769355762006,0.01127205,88715.0,88702.0,1.05551356]
[1769355762205,1.08759957,88719.0,88702.0,1.05551356]
[1769355762206,0.05635912,88717.0,88702.0,1.05551356]
[1769355762412,0.01127192,88716.0,88702.0,1.05551356]
[1769355762835,0.01127205,88715.0,88702.0,1.05551356]
[1769355763169,0.01127192,88716.0,88702.0,1.05551356]
[1769355763325,0.01127192,88716.0,88702.0,1.05451356]
[1769355763522,0.01127205,88715.0,88702.0,1.05451356]
[1769355763867,0.01227205,88715.0,88702.0,1.05451356]
[1769355764024,0.95513122,88719.0,88702.0,1.05451356]
[1769355764424,0.95513106,88719.0,88702.0,1.05451356]
[1769355764625,0.001,88716.0,88702.0,1.05451356]
[1769355764833,0.01227192,88716.0,88702.0,1.16447692]
[1769355765184,0.05636075,88715.0,88702.0,1.05451356]
[1769355765329,0.0676328,88715.0,88702.0,1.05451356]
[1769355765529,0.01127217,88714.0,88702.0,1.05451356]
[1769355766964,0.0112723,88713.0,88702.0,1.05451356]
[1769355767544,0.0112723,88713.0,88697.0,0.04512]
[1769355767972,0.01127205,88715.0,88698.0,0.34579828]
[1769355768179,0.01127205,88715.0,88702.0,0.001]
[1769355768805,0.01127179,88717.0,88703.0,0.70871528]
[1769355769799,0.001,88713.0,88703.0,0.70871528]
[1769355770386,0.41462076,88719.0,88703.0,0.70871528]
[1769355770600,0.001,88717.0,88703.0,0.70871528]
[1769355771224,0.35826287,88719.0,88703.0,0.70871528]
[1769355771364,0.01127166,88718.0,88703.0,0.70871528]
[1769355771571,0.34699133,88719.0,88704.0,0.04224585]
[1769355771808,0.01127166,88718.0,88704.0,0.04224585]
[1769355772673,0.01127179,88717.0,88703.0,0.70971528]
[1769355772876,0.01127192,88716.0,88703.0,0.70871528]
[1769355773078,0.01127205,88715.0,88703.0,0.70871528]
[1769355774719,0.01227205,88715.0,88703.0,0.70871528]
[1769355774922,0.001,88715.0,88703.0,0.70871528]
[1769355775472,0.0112723,88713.0,88703.0,0.70871528]
[1769355775641,0.01127217,88714.0,88703.0,0.70871528]
[1769355775803,0.0112723,88713.0,88703.0,0.70871528]
[1769355776005,0.01127217,88714.0,88703.0,0.70871528]
[1769355776410,0.0112723,88713.0,88703.0,0.70871528]
[1769355776628,0.001,88715.0,88703.0,0.70871528]
[1769355777023,0.01127192,88716.0,88703.0,0.70871528]
[1769355777423,0.001,88714.0,88703.0,0.70871528]
[1769355777818,0.01127179,88717.0,88703.0,0.70871528]
[1769355778741,0.01127166,88718.0,88703.0,0.70871528]
[1769355779122,0.01127166,88718.0,88703.0,0.81416664]
[1769355779321,0.001,88716.0,88703.0,0.81416664]
[1769355779617,0.001,88716.0,88703.0,0.10545136]
[1769355779845,0.01127179,88717.0,88702.0,0.34579828]
[1769355781330,0.01127166,88718.0,88702.0,0.34579828]
[1769355782928,0.001,88717.0,88702.0,1.02830714]
[1769355783336,1.03124154,88719.0,88702.0,1.02830714]
[1769355783759,0.001,88718.0,88702.0,1.02830714]
[1769355784382,1.03124154,88719.0,88702.0,1.02830714]
[1769355784583,1.03224154,88719.0,88702.0,1.02830714]
[1769355784795,1.03224154,88719.0,88702.0,1.09676744]
[1769355785983,1.03124154,88719.0,88702.0,1.09676744]
[1769355786262,0.01227166,88718.0,88703.0,0.68250886]
[1769355786481,0.01127179,88717.0,88703.0,0.68250886]
[1769355786888,0.01127166,88718.0,88703.0,0.68250886]
[1769355787083,0.01127179,88717.0,88703.0,0.68250886]
[1769355787920,0.01227179,88717.0,88703.0,0.68250886]
[1769355788686,0.001,88717.0,88703.0,0.68250886]
[1769355788907,0.01227179,88717.0,88703.0,0.68250886]
[1769355792144,0.001,88717.0,88703.0,0.68250886]
[1769355792350,0.01127179,88717.0,88703.0,0.68250886]
[1769355792550,0.01227179,88717.0,88703.0,0.68250886]
[1769355792975,0.01227179,88717.0,88703.0,0.78533957]
[1769355793353,0.01127192,88716.0,88703.0,0.68250886]
[1769355793899,0.01127205,88715.0,88703.0,0.68250886]
[1769355794524,0.01227179,88717.0,88703.0,0.68250886]
[1769355794723,0.01127192,88716.0,88703.0,0.68250886]
[1769355795812,0.001,88716.0,88703.0,0.68250886]
[1769355796546,0.01127205,88715.0,88703.0,0.68250886]
[1769355797426,0.01227192,88716.0,88703.0,0.68250886]
[1769355798211,0.01127166,88718.0,88703.0,0.68250886]
[1769355798708,0.001,88715.0,88703.0,0.68250886]
[1769355799112,1.04251308,88719.0,88703.0,0.68250886]
[1769355799786,0.001,88718.0,88703.0,0.68250886]
[1769355800019,0.01227166,88718.0,88703.0,0.68250886]
[1769355801403,0.01127166,88718.0,88703.0,0.68250886]
[1769355802229,1.04251308,88719.0,88703.0,0.68250886]
[1769355802612,0.001,88718.0,88703.0,0.68250886]
[1769355802995,1.04251308,88719.0,88703.0,0.68250886]
[1769355803424,0.01127166,88718.0,88703.0,0.68250886]
[1769355803626,1.04351308,88719.0,88703.0,0.68250886]
[1769355803863,0.01127166,88718.0,88703.0,0.68250886]
[1769355804958,0.01127179,88717.0,88703.0,0.68250886]
[1769355805471,0.01127192,88716.0,88704.0,0.01380658]
[1769355805637,0.01127179,88717.0,88704.0,0.01380658]
[1769355805837,0.01127192,88716.0,88704.0,0.01380658]
[1769355806699,0.01227192,88716.0,88704.0,0.01380658]
[1769355807548,0.001,88716.0,88704.0,0.01380658]
[1769355808023,0.01127179,88717.0,88704.0,0.01380658]
[1769355808436,0.001,88716.0,88704.0,0.01380658]
[1769355808643,0.01227192,88716.0,88704.0,0.01380658]
[1769355808986,0.01127179,88717.0,88704.0,0.01380658]
[1769355809187,0.01127192,88716.0,88704.0,0.01380658]
[1769355809605,0.92542602,88719.0,88705.0,0.10421137]
[1769355809805,0.01127179,88717.0,88705.0,0.10421137]
[1769355810046,0.01127192,88716.0,88705.0,0.10421137]
[1769355810202,0.01127179,88717.0,88705.0,0.10421137]
[1769355810620,0.01127205,88715.0,88705.0,0.10421137]
[1769355811023,0.01127192,88716.0,88705.0,0.10421137]
[1769355811226,0.01227179,88717.0,88705.0,0.10421137]
[1769355811666,0.01127192,88716.0,88706.0,0.11160278]
[1769355811871,0.01127205,88715.0,88706.0,0.11160278]
[1769355812072,0.001,88715.0,88706.0,0.11160278]
[1769355812551,0.01127192,88716.0,88706.0,0.11160278]
[1769355812736,0.01227192,88716.0,88706.0,0.11160278]
[1769355812939,0.001,88716.0,88706.0,0.11160278]
[1769355813182,0.001,88716.0,88704.0,0.01380658]
[1769355813366,0.06863163,88716.0,88703.0,0.68250886]
[1769355813565,0.0112723,88713.0,88697.0,0.6526008]
[1769355813775,0.36202594,88712.0,88696.0,0.17328]
[1769355813940,0.01127281,88709.0,88696.0,0.17328]
[1769355814473,0.01127281,88709.0,88697.0,0.3644904]
[1769355814677,0.01127281,88709.0,88697.0,1.07712898]
[1769355814887,0.01127268,88710.0,88697.0,1.07712898]
[1769355815274,0.01127281,88709.0,88697.0,1.07712898]
[1769355815679,0.01127294,88708.0,88697.0,1.07712898]
[1769355815915,0.01227281,88709.0,88697.0,1.07712898]
[1769355815916,0.001,88709.0,88697.0,1.07712898]
[1769355816229,0.001,88709.0,88698.0,0.11160278]
[1769355816611,0.01227281,88709.0,88698.0,0.11160278]
[1769355816797,0.01227281,88709.0,88697.0,1.0170912]
[1769355817003,0.01127306,88707.0,88697.0,1.0170912]
[1769355817191,0.01127294,88708.0,88697.0,1.0170912]
[1769355817590,0.01127306,88707.0,88697.0,1.0180912]
[1769355817896,0.01127306,88707.0,88697.0,1.0170912]
[1769355818314,0.01127306,88707.0,88697.0,0.001]
[1769355818315,0.01127332,88705.0,88697.0,0.001]
[1769355818592,0.01127306,88707.0,88697.0,0.001]
[1769355818780,0.01127306,88707.0,88692.0,0.01748735]
[1769355818937,0.01127306,88707.0,88692.0,0.0001485]
[1769355819136,0.01127306,88707.0,88694.0,0.3644904]
[1769355819137,0.01227306,88707.0,88694.0,0.3644904]
[1769355819343,0.001,88707.0,88695.0,1.0170912]
[1769355820499,0.01127281,88709.0,88695.0,1.0170912]
[1769355820716,0.001,88707.0,88695.0,1.0170912]
[1769355821084,0.01127294,88708.0,88695.0,1.0170912]
[1769355821853,0.001,88707.0,88695.0,1.0170912]
[1769355822333,0.01127306,88707.0,88695.0,1.0170912]
[1769355822533,0.06763842,88707.0,88695.0,1.0170912]
[1769355822756,0.01127306,88707.0,88695.0,1.0170912]
[1769355823529,0.01227294,88708.0,88695.0,1.0170912]
[1769355824035,0.01127294,88708.0,88695.0,1.0170912]
[1769355824236,0.01127281,88709.0,88695.0,1.0170912]
[1769355824418,0.001,88707.0,88695.0,1.0170912]
[1769355824819,0.01127294,88708.0,88695.0,1.0170912]
[1769355825190,0.01227294,88708.0,88695.0,1.04029497]
[1769355826290,0.001,88708.0,88695.0,1.04029497]
[1769355826603,0.01127281,88709.0,88695.0,0.67580457]
[1769355827029,0.001,88708.0,88696.0,1.0170912]
[1769355827704,0.01127255,88711.0,88696.0,1.0170912]
[1769355827907,0.001,88709.0,88696.0,1.0170912]
[1769355828320,0.01127255,88711.0,88696.0,1.0170912]
[1769355829131,0.01127268,88710.0,88696.0,1.0170912]
[1769355829344,0.01127255,88711.0,88696.0,1.0170912]
[1769355829977,0.01127268,88710.0,88696.0,1.0170912]
[1769355830276,0.001,88708.0,88696.0,1.0170912]
[1769355830642,0.01127255,88711.0,88696.0,1.0170912]
[1769355831142,0.01227255,88711.0,88696.0,1.0170912]
[1769355831341,0.01127268,88710.0,88696.0,1.0170912]
[1769355831928,0.01127255,88711.0,88696.0,1.0170912]
[1769355832512,0.01127268,88710.0,88696.0,1.0170912]
[1769355832640,0.01127255,88711.0,88696.0,1.0170912]
[1769355832842,0.01127268,88710.0,88696.0,1.0170912]
[1769355833631,0.01127294,88708.0,88696.0,1.0170912]
[1769355833970,0.01127281,88709.0,88696.0,1.0170912]
[1769355834157,0.06763744,88709.0,88696.0,1.0170912]
[1769355834353,0.01127306,88707.0,88696.0,1.0170912]
[1769355834553,0.01127319,88706.0,88696.0,1.0170912]
[1769355834761,0.01127281,88709.0,88696.0,1.0170912]
[1769355834954,0.06763746,88709.0,88696.0,1.0170912]
[1769355835430,0.01127306,88707.0,88696.0,1.0170912]
[1769355835823,0.01127281,88709.0,88696.0,1.0170912]
[1769355836028,0.01127294,88708.0,88696.0,1.0170912]
[1769355836428,0.01127306,88707.0,88696.0,1.0170912]
[1769355836646,0.01127319,88706.0,88696.0,1.0170912]
[1769355836841,0.01227306,88707.0,88696.0,1.0170912]
[1769355837243,0.01127281,88709.0,88696.0,1.11881517]
[1769355837749,0.05636473,88708.0,88696.0,1.11881517]
[1769355837955,0.001,88707.0,88696.0,1.11881517]
[1769355839124,0.001,88707.0,88699.0,0.6526008]
[1769355839479,0.01127128,88721.0,88704.0,0.6526008]
[1769355839767,0.001,88709.0,88707.0,0.3413304]
[1769355840127,0.01127154,88719.0,88707.0,0.3413304]
[1769355840349,0.01127141,88720.0,88707.0,0.3413304]
[1769355841174,0.01127128,88721.0,88707.0,0.3413304]
[1769355841332,0.001,88719.0,88707.0,0.3413304]
[1769355841537,0.001,88719.0,88707.0,0.41208288]
[1769355842565,0.02354308,88722.0,88707.0,0.41208288]
[1769355842762,0.192777,88721.0,88707.0,0.41208288]
[1769355842962,0.001,88720.0,88707.0,0.3413304]
[1769355843588,0.03481424,88722.0,88707.0,0.3413304]
[1769355843925,0.01127141,88720.0,88707.0,0.3413304]
[1769355844120,0.192792,88720.0,88707.0,0.3413304]
[1769355844301,0.192792,88720.0,88704.0,9.077e-05]
[1769355844892,0.20406341,88720.0,88704.0,9.077e-05]
[1769355845095,0.192792,88720.0,88704.0,9.077e-05]
[1769355845922,0.001,88720.0,88704.0,9.077e-05]
[1769355846305,0.192805,88720.0,88704.0,9.077e-05]
[1769355846705,0.001,88720.0,88704.0,9.077e-05]
[1769355850233,0.001,88720.0,88704.0,0.11087728]
[1769355851627,0.01227141,88720.0,88704.0,0.11087728]
[1769355851969,0.01227141,88720.0,88704.0,9.077e-05]
[1769355852356,0.04611737,88720.0,88704.0,9.077e-05]
[1769355852795,0.03484596,88720.0,88704.0,9.077e-05]
[1769355852966,0.04611737,88720.0,88704.0,9.077e-05]
[1769355853169,0.03484596,88720.0,88704.0,9.077e-05]
[1769355853537,0.04611737,88720.0,88704.0,9.077e-05]
[1769355854811,0.03484596,88720.0,88704.0,9.077e-05]
[1769355857301,0.03484596,88720.0,88705.0,0.34898205]
[1769355858669,0.03384596,88720.0,88705.0,0.34898205]
[1769355858837,0.37086,88721.0,88705.0,0.34898205]
[1769355859044,0.001,88720.0,88705.0,0.34898205]
[1769355859538,0.376851,88721.0,88705.0,0.34898205]
[1769355859840,0.37086,88720.0,88705.0,0.34898205]
[1769355860246,0.376851,88721.0,88705.0,0.34898205]
[1769355860755,0.37086,88720.0,88705.0,0.34898205]
[1769355861652,0.01127141,88720.0,88705.0,0.34898205]
[1769355861857,0.377432,88721.0,88705.0,0.34898205]
[1769355862520,0.36968,88721.0,88705.0,0.34898205]
[1769355862716,0.317949,88721.0,88705.0,0.34898205]
[1769355862920,0.03384554,88722.0,88708.0,0.68269241]
[1769355863123,0.0001485,88723.0,88705.0,0.03490728]
[1769355863124,0.0001485,88723.0,88712.0,0.68269241]
[1769355863458,0.0001485,88723.0,88714.0,0.34898205]
[1769355866479,0.0001485,88723.0,88714.0,0.34998205]
[1769355866844,0.0001485,88723.0,88714.0,0.34898205]
[1769355867066,0.05635758,88720.0,88705.0,0.34898205]
[1769355867272,0.01127154,88719.0,88714.0,0.001]
[1769355867470,0.0563566,88721.0,88714.0,0.001]
[1769355867471,0.06762788,88721.0,88714.0,0.001]
[1769355867676,0.01127166,88718.0,88714.0,0.001]
[1769355867893,0.01127179,88717.0,88714.0,0.001]
[1769355868093,0.01127205,88715.0,88704.0,0.17337077]
[1769355869535,0.01127192,88716.0,88704.0,0.17337077]
[1769355869711,0.001,88715.0,88704.0,0.17337077]
[1769355870509,0.68278177,88718.0,88704.0,0.17337077]
[1769355871842,0.35541813,88721.0,88704.0,0.17337077]
[1769355872040,0.35541813,88721.0,88704.0,0.52235282]
[1769355872423,0.41177471,88721.0,88704.0,0.52335282]
[1769355872741,0.01127154,88719.0,88704.0,0.52335282]
[1769355872945,0.01127141,88720.0,88704.0,0.52235282]
[1769355873515,0.01127154,88719.0,88704.0,0.52235282]
[1769355873910,0.01127166,88718.0,88704.0,0.52235282]
[1769355876089,0.01127154,88719.0,88704.0,0.52235282]
[1769355877054,0.01127166,88718.0,88704.0,0.52235282]
[1769355877942,0.01127154,88719.0,88704.0,0.52235282]
[1769355878963,0.01127141,88720.0,88704.0,0.52235282]
[1769355879347,0.01127154,88719.0,88704.0,0.52235282]
[1769355879746,0.27917942,88721.0,88705.0,0.08705163]
[1769355879971,0.01127141,88720.0,88705.0,0.08705163]
[1769355880220,0.01127154,88719.0,88705.0,0.08705163]
[1769355880551,0.01127166,88718.0,88705.0,0.08705163]
[1769355880906,0.01127166,88718.0,88704.0,0.52235282]
[1769355881307,0.01127179,88717.0,88704.0,0.52235282]
[1769355881474,0.01127166,88718.0,88704.0,0.52235282]
[1769355881854,0.01127166,88718.0,88705.0,0.3397338]
[1769355882726,0.01127154,88719.0,88705.0,0.3397338]
[1769355883436,0.01127166,88718.0,88705.0,0.3397338]
[1769355883731,0.01127154,88719.0,88705.0,0.3397338]
[1769355883933,0.01227154,88719.0,88705.0,0.3397338]
[1769355884638,0.01127166,88718.0,88705.0,0.3397338]
[1769355884841,0.01227154,88719.0,88705.0,0.3397338]
[1769355885042,0.01227154,88719.0,88706.0,0.3397338]
[1769355885207,0.01127154,88719.0,88706.0,0.3397338]
[1769355885409,0.01127166,88718.0,88706.0,0.3397338]
[1769355885608,0.01127154,88719.0,88706.0,0.3397338]
[1769355886141,0.06762975,88719.0,88706.0,0.3397338]
[1769355886367,0.01127179,88717.0,88706.0,0.3397338]
[1769355887150,0.01127166,88718.0,88706.0,0.3397338]
[1769355888198,0.01127179,88717.0,88706.0,0.3397338]
[1769355888614,0.01127166,88718.0,88706.0,0.3397338]
[1769355888812,0.001,88717.0,88706.0,0.3397338]
[1769355889118,0.01127179,88717.0,88707.0,0.11160278]
[1769355889538,0.01127166,88718.0,88707.0,0.11160278]
[1769355889764,0.01227166,88718.0,88707.0,0.11160278]
[1769355890345,0.01127154,88719.0,88707.0,0.11160278]
[1769355890545,0.01127141,88720.0,88707.0,0.11160278]
[1769355890741,0.01127141,88720.0,88708.0,0.03243274]
[1769355890742,0.01127154,88719.0,88708.0,0.03243274]
[1769355891197,0.01127141,88720.0,88708.0,0.03243274]
[1769355891521,0.01127154,88719.0,88708.0,0.03243274]
[1769355891795,0.001,88717.0,88708.0,0.03243274]
[1769355892379,0.01127141,88720.0,88708.0,0.03243274]
[1769355892896,0.01127141,88720.0,88709.0,0.1081842]
[1769355893398,0.01127128,88721.0,88709.0,0.1081842]
[1769355893906,0.01127141,88720.0,88709.0,0.1081842]
[1769355894272,0.01127128,88721.0,88709.0,0.1081842]
[1769355894467,0.01127166,88718.0,88709.0,0.1081842]
[1769355894806,0.01127154,88719.0,88709.0,0.1081842]
[1769355895377,0.01127166,88718.0,88709.0,0.1081842]
[1769355896449,0.01127179,88717.0,88709.0,0.1081842]
[1769355897217,0.01127179,88717.0,88708.0,0.03243274]
[1769355897420,0.001,88718.0,88708.0,0.03243274]
[1769355897994,0.01127154,88719.0,88706.0,0.3397338]
[1769355898414,0.01127154,88719.0,88709.0,0.001]
[1769355898618,0.01127128,88721.0,88709.0,0.001]
[1769355899009,0.01127128,88721.0,88706.0,0.3397338]
[1769355899010,0.01127154,88719.0,88706.0,0.3397338]
[1769355899216,0.01127141,88720.0,88706.0,0.3397338]
[1769355899441,0.01127154,88719.0,88706.0,0.3397338]
[1769355900110,0.01127166,88718.0,88706.0,0.3397338]
[1769355900898,0.01127179,88717.0,88706.0,0.3397338]
[1769355902118,0.01127179,88717.0,88706.0,0.3407338]
[1769355902326,0.01127192,88716.0,88706.0,0.3407338]
[1769355902937,0.01127192,88716.0,88706.0,0.3397338]
[1769355903696,0.01127205,88715.0,88706.0,0.3397338]
[1769355904040,0.01127192,88716.0,88706.0,0.3397338]
[1769355904852,0.01127179,88717.0,88706.0,0.3407338]
[1769355905264,0.05636422,88709.0,88704.0,9.077e-05]
[1769355905463,0.05636422,88709.0,88697.0,0.3481563]
[1769355905464,0.01127268,88710.0,88702.0,0.13211277]
[1769355905711,0.01127281,88709.0,88706.0,0.001]
[1769355906219,0.01127268,88710.0,88702.0,0.13216013]
[1769355906420,0.01127255,88711.0,88702.0,0.13216013]
[1769355906567,0.01127243,88712.0,88704.0,0.001]
[1769355907714,0.01127243,88712.0,88702.0,0.13216013]
[1769355908462,0.55888024,88714.0,88702.0,0.13216013]
[1769355908892,0.001,88712.0,88702.0,0.13216013]
[1769355909120,0.01227243,88712.0,88702.0,0.13216013]
[1769355909315,0.01127268,88710.0,88702.0,0.13216013]
[1769355909874,0.01127255,88711.0,88702.0,0.13216013]
[1769355911547,0.01127255,88711.0,88702.0,0.13316013]
[1769355911702,0.01127255,88711.0,88702.0,0.13216013]
[1769355912047,0.01127243,88712.0,88702.0,0.13216013]
[1769355912884,0.001,88711.0,88702.0,0.13216013]
[1769355914264,0.01127243,88712.0,88702.0,0.13216013]
[1769355914573,0.01227243,88712.0,88702.0,0.13216013]
[1769355914977,0.01127243,88712.0,88702.0,0.13216013]
[1769355915180,0.0112723,88713.0,88702.0,0.13216013]
[1769355915364,0.001,88711.0,88702.0,0.13216013]
[1769355915731,0.0112723,88713.0,88702.0,0.13216013]
[1769355916174,0.001,88712.0,88702.0,0.13216013]
[1769355917438,0.01127243,88712.0,88702.0,0.13216013]
[1769355917607,0.0112723,88713.0,88702.0,0.13216013]
[1769355917806,0.0122723,88713.0,88702.0,0.13216013]
[1769355918189,0.0112723,88713.0,88702.0,0.13216013]
[1769355918493,0.001,88712.0,88702.0,0.13216013]
[1769355919235,0.01127255,88711.0,88702.0,0.13216013]
[1769355920604,0.06763392,88713.0,88702.0,0.13216013]
[1769355920809,0.0112723,88713.0,88702.0,0.13216013]
[1769355921143,0.001,88712.0,88702.0,0.13216013]
[1769355921570,0.01227243,88712.0,88702.0,0.13216013]
[1769355921733,0.001,88712.0,88702.0,0.13216013]
[1769355921932,0.0112723,88713.0,88702.0,0.13216013]
[1769355922233,0.01127255,88711.0,88702.0,0.13216013]
[1769355922448,0.0112723,88713.0,88702.0,0.13216013]
[1769355922659,0.0122723,88713.0,88702.0,0.13216013]
[1769355923023,0.05636219,88712.0,88702.0,0.13216013]
[1769355923208,0.01127243,88712.0,88702.0,0.13216013]
[1769355924057,0.01227255,88711.0,88702.0,0.13216013]
[1769355924401,0.001,88711.0,88702.0,0.13216013]